bitfinex/quotes_SOLUSD_20250806
["timestamp","ask_amount","ask_price","bid_price","bid_amount"]
[1754507045011,1e-08,168.86,168.85,13.08028724]
[1754507047098,1e-08,168.86,168.85,15.45283624]
[1754507047414,1e-08,168.86,168.85,15.31067467]
[1754507047596,1e-08,168.86,168.85,15.45283624]
[1754507051418,0.03,168.87,168.86,0.14216157]
[1754507052112,0.03,168.87,168.86,0.81216157]
[1754507052312,0.03,168.87,168.86,3.32673114]
[1754507052706,0.03,168.87,168.86,9.4702789]
[1754507053086,0.03,168.87,168.86,15.39234451]
[1754507054129,0.03,168.87,168.86,9.24879675]
[1754507054329,0.03,168.87,168.86,15.39234451]
[1754507055329,22.65981853,168.95,168.87,41.39053871]
[1754507055529,22.65981853,168.95,168.93,0.28432314]
[1754507055530,0.2,168.95,168.93,0.28432314]
[1754507055720,0.2,168.95,168.94,0.28432314]
[1754507056027,0.2,168.95,168.94,6.4278709]
[1754507056341,0.2,168.95,168.94,7.0978709]
[1754507056634,0.03,168.96,168.95,0.28432314]
[1754507056945,1e-08,168.97,168.96,6.4278709]
[1754507057132,1e-08,168.97,168.96,47.7478709]
[1754507057330,1e-08,168.97,168.96,54.3364315]
[1754507057627,1e-08,168.98,168.97,0.28432314]
[1754507057934,1e-08,168.98,168.97,22.20408647]
[1754507058921,1e-08,168.98,168.97,16.06053871]
[1754507059116,1e-08,168.98,168.97,22.20408647]
[1754507059323,1e-08,168.98,168.97,28.1222968]
[1754507064014,1e-08,168.98,168.97,30.4928778]
[1754507071353,0.72,169.02,168.97,100.87945529]
[1754507071550,0.2,169.03,169.02,0.28432314]
[1754507072227,0.92,169.03,169.02,6.4278709]
[1754507072429,0.92,169.03,169.02,12.34433049]
[1754507073054,0.92,169.03,169.02,6.20078273]
[1754507073862,0.92,169.03,169.02,12.34433049]
[1754507074040,0.2,169.03,169.02,12.34433049]
[1754507074434,1e-08,169.03,169.02,30.12158249]
[1754507077240,1e-08,169.03,169.02,71.44158249]
[1754507077448,0.72000001,169.03,169.02,71.44158249]
[1754507077652,1e-08,169.03,169.02,71.44158249]
[1754507079158,0.72000001,169.03,169.02,71.44158249]
[1754507079740,0.72000001,169.03,169.02,65.29803473]
[1754507080636,0.72000001,169.03,169.02,71.44158249]
[1754507081265,0.72000001,169.03,169.02,65.29803473]
[1754507081432,0.72000001,169.03,169.02,71.44158249]
[1754507084666,6.86354777,169.03,168.94,0.06]
[1754507084838,6.14354776,168.97,168.94,0.06]
[1754507085033,26.72,169.02,168.94,0.06]
[1754507085355,6.86354776,168.97,168.95,5.91879472]
[1754507085878,6.86354776,168.97,168.96,6.26288374]
[1754507086575,6.86354776,168.97,168.96,5.9785606]
[1754507086754,6.86354776,168.97,168.96,6.26288374]
[1754507088534,6.86354776,168.97,168.96,0.34432314]
[1754507089454,0.72,168.97,168.96,6.26288374]
[1754507089656,6.14354776,168.98,168.96,6.26288374]
[1754507089838,6.86354776,168.98,168.97,0.28432314]
[1754507090458,26.0,169.02,168.97,0.28432314]
[1754507090459,6.14354776,168.99,168.97,0.28432314]
[1754507090661,6.86354776,168.99,168.97,0.28432314]
[1754507090875,6.86354776,168.99,168.98,5.9178601]
[1754507091075,41.28000001,169.03,168.99,0.28432314]
[1754507091076,6.86354776,169.01,168.99,0.28432314]
[1754507091457,6.14354776,169.01,168.99,0.28432314]
[1754507091669,0.72,169.0,168.99,0.28432314]
[1754507092855,0.72,169.0,168.99,6.20183305]
[1754507093463,0.72000001,169.03,168.99,27.85915558]
[1754507093692,0.72000001,169.03,169.01,0.28432314]
[1754507094876,0.72000001,169.03,169.02,6.20078273]
[1754507096166,1e-08,169.03,169.02,6.20078273]
[1754507096676,0.72000001,169.03,169.02,6.20078273]
[1754507097480,1e-08,169.03,169.02,6.20078273]
[1754507097779,0.72000001,169.03,169.02,6.20078273]
[1754507098784,6.86354777,169.03,168.97,5.91821033]
[1754507098982,6.14354776,168.99,168.97,47.19821033]
[1754507099156,6.14354776,168.99,168.98,0.28432314]
[1754507099466,6.14354776,168.99,168.97,5.91821033]
[1754507099662,6.14354776,169.0,168.98,0.28432314]
[1754507099863,6.86354776,169.0,168.98,0.28432314]
[1754507100062,6.86354776,169.0,168.98,0.14216157]
[1754507100582,6.14354776,169.0,168.99,5.91750991]
[1754507101269,6.86354776,169.0,168.99,5.91750991]
[1754507105892,0.72,169.0,168.99,5.91750991]
[1754507106079,6.86354776,169.0,168.99,5.91750991]
[1754507107481,0.72,169.0,168.99,5.91750991]
[1754507107682,6.86354776,169.0,168.99,5.91750991]
[1754507108566,6.14354776,169.0,168.99,5.91750991]
[1754507108765,145.9,169.01,168.99,6.92183305]
[1754507110084,145.9,169.01,169.0,0.28432314]
[1754507110260,145.9,169.01,169.0,1.00432314]
[1754507110875,1e-08,169.03,169.0,1.00432314]
[1754507111074,3.95638597,169.03,169.01,0.72]
[1754507111293,1e-08,169.03,169.01,0.72]
[1754507111675,1e-08,169.03,169.02,0.72]
[1754507112186,1e-08,169.03,169.02,5.91645959]
[1754507112602,1e-08,169.03,169.02,6.20078273]
[1754507114681,0.72000001,169.03,169.02,6.20078273]
[1754507115190,1e-08,169.03,169.02,6.20078273]
[1754507115396,6.14354777,169.03,169.02,6.20078273]
[1754507115693,1e-08,169.03,169.02,6.20078273]
[1754507116194,6.86354777,169.03,169.02,6.20078273]
[1754507117799,0.72000001,169.03,169.02,6.20078273]
[1754507119082,1e-08,169.03,169.02,6.20078273]
[1754507129417,0.65000001,169.03,169.02,6.20078273]
[1754507130502,0.65000001,169.03,169.02,6.26078273]
[1754507130821,1e-08,169.03,169.02,6.26078273]
[1754507133418,3.96354953,169.03,169.02,6.26078273]
[1754507135003,3.96354953,169.03,169.02,6.93078273]
[1754507135907,3.96354953,169.03,169.02,48.19078273]
[1754507136614,3.96354953,169.03,169.02,54.33433049]
[1754507137401,3.96354953,169.03,169.02,48.19078273]
[1754507137604,1e-08,169.03,169.02,48.19078273]
[1754507139011,1e-08,169.03,169.02,6.93078273]
[1754507139199,1e-08,169.03,169.02,48.19078273]
[1754507140522,1e-08,169.03,169.02,6.93078273]
[1754507140897,1e-08,169.03,169.02,48.19078273]
[1754507141429,4.6150307,169.03,169.02,5.97645959]
[1754507141911,4.6150307,169.03,169.02,6.26078273]
[1754507142832,0.65000001,169.03,169.02,6.26078273]
[1754507143130,10.75645831,169.03,169.02,0.34432314]
[1754507143301,10.75645831,169.03,169.02,6.26078273]
[1754507144633,3.96291055,169.03,169.02,6.26078273]
[1754507144804,1e-08,169.03,169.02,13.07433049]
[1754507145006,1e-08,169.03,169.02,6.93078273]
[1754507150525,1e-08,169.03,169.02,48.19078273]
[1754507151217,1e-08,169.03,169.02,54.33433049]
[1754507151411,1e-08,169.03,169.02,80.33433049]
[1754507151833,1e-08,169.03,169.02,80.37433049]
[1754507155233,1e-08,169.05,169.03,0.28432314]
[1754507155420,1e-08,169.05,169.04,48.3978709]
[1754507157327,1e-08,169.05,169.04,54.31363048]
[1754507160724,0.72000001,169.05,169.04,5.91575958]
[1754507161042,0.72000001,169.05,169.04,47.46008272]
[1754507161243,0.72000001,169.05,169.04,47.31792115]
[1754507161629,0.72000001,169.05,169.04,47.46008272]
[1754507162643,1e-08,169.05,169.04,47.46008272]
[1754507163732,0.72000001,169.05,169.04,47.46008272]
[1754507167736,1e-08,169.05,169.04,47.46008272]
[1754507169141,0.72000001,169.05,169.04,47.46008272]
[1754507171140,0.72000001,169.05,169.04,47.44008272]
[1754507172042,0.72000001,169.05,169.04,6.20008272]
[1754507172258,0.72000001,169.05,169.04,47.44008272]
[1754507172660,1e-08,169.05,169.04,47.44008272]
[1754507173134,0.72000001,169.05,169.04,47.44008272]
[1754507173854,1e-08,169.05,169.04,47.44008272]
[1754507176345,0.72000001,169.05,169.04,47.44008272]
[1754507177270,6.86354777,169.05,169.03,5.91599345]
[1754507177437,6.14354776,169.04,169.03,5.91599345]
[1754507177630,6.86354776,169.04,169.03,6.20031659]
[1754507179638,1e-08,169.05,169.03,6.88031659]
[1754507179843,1e-08,169.05,169.03,48.12031659]
[1754507180270,6.14354777,169.05,169.03,47.44031659]
[1754507180437,6.83354777,169.05,169.03,47.44031659]
[1754507180846,6.14354777,169.05,169.03,47.44031659]
[1754507181681,6.83354777,169.05,169.03,47.44031659]
[1754507182660,1e-08,169.05,169.04,0.28432314]
[1754507183776,1e-08,169.05,169.04,6.20008272]
[1754507184960,6.83354777,169.05,169.04,6.05792115]
[1754507185777,10.79935525,169.05,169.04,6.05792115]
[1754507186185,6.83354777,169.05,169.04,6.20008272]
[1754507186659,6.14354777,169.05,169.04,6.20008272]
[1754507187373,6.83354777,169.05,169.04,6.20008272]
[1754507187963,10.79958014,169.05,169.04,6.20008272]
[1754507190876,10.79958014,169.05,169.04,0.14216157]
[1754507192190,10.79958014,169.05,169.04,0.28432314]
[1754507192800,4.65603238,169.05,169.04,0.28432314]
[1754507192996,10.79958014,169.05,169.04,0.28432314]
[1754507193301,10.79958014,169.05,169.04,6.20008272]
[1754507193604,10.79958014,169.05,169.04,0.28432314]
[1754507194404,10.79958014,169.05,169.04,0.14216157]
[1754507196804,16.71501921,169.05,169.02,0.06]
[1754507196988,32.14354776,169.03,169.02,0.06]
[1754507197206,77.34958013,169.03,169.02,0.06]
[1754507197514,83.95568969,169.03,169.02,0.06]
[1754507197812,78.03958013,169.03,169.02,0.06]
[1754507201617,99.06190526,169.03,169.02,0.06]
[1754507203190,15.10621557,169.02,168.97,0.34432314]
[1754507203399,6.14354776,168.98,168.97,0.34432314]
[1754507203606,6.14354776,168.98,168.97,6.26253347]
[1754507204045,6.83354776,168.98,168.97,0.34432314]
[1754507204916,6.14354776,168.98,168.97,0.34432314]
[1754507205109,6.14354776,168.98,168.97,6.26253347]
[1754507206001,6.14354776,168.98,168.97,0.34432314]
[1754507207332,6.83354776,168.98,168.97,0.34432314]
[1754507207922,6.14354776,168.98,168.97,0.34432314]
[1754507208498,41.93,168.99,168.97,0.34432314]
[1754507208499,41.93,168.99,168.97,6.26253347]
[1754507208700,6.14354776,168.98,168.97,6.26253347]
[1754507210237,6.14354776,168.98,168.97,6.94253347]
[1754507211537,6.14354776,168.98,168.97,6.26253347]
[1754507213408,41.24,168.99,168.98,0.28432314]
[1754507213611,47.38354776,168.99,168.98,0.28432314]
[1754507215737,41.26,169.0,168.99,0.28432314]
[1754507215942,10.09695735,169.0,168.99,0.28432314]
[1754507216641,7.88117289,169.0,168.99,0.28432314]
[1754507216825,3.95340959,169.0,168.99,6.20183305]
[1754507217025,3.9277633,169.0,168.99,6.88183305]
[1754507217211,41.26,169.01,168.99,6.88183305]
[1754507217544,3.9277633,169.0,168.99,6.20183305]
[1754507217922,3.9277633,169.0,168.98,5.91777717]
[1754507218143,4.6177633,168.99,168.98,6.20210031]
[1754507218645,6.82792271,168.99,168.98,6.20210031]
[1754507218843,6.13792271,168.99,168.98,6.20210031]
[1754507220033,6.82792271,168.99,168.98,0.28432314]
[1754507220250,48.08792271,168.99,168.98,0.28432314]
[1754507220420,52.04406753,168.99,168.98,0.28432314]
[1754507220834,52.04406753,168.99,168.97,0.06]
[1754507221141,10.78405193,168.98,168.97,0.06]
[1754507222325,10.78405193,168.98,168.97,6.94253347]
[1754507222326,6.13792271,168.98,168.97,6.94253347]
[1754507222533,6.13792271,168.98,168.97,6.26253347]
[1754507222733,41.26,168.99,168.98,0.28432314]
[1754507222928,51.35513469,168.99,168.98,0.28432314]
[1754507224220,51.35513469,168.99,168.98,6.20218324]
[1754507224545,6.13792271,168.99,168.98,6.88218324]
[1754507228249,10.10061663,169.0,168.98,6.88218324]
[1754507228448,6.13792271,168.99,168.98,6.88218324]
[1754507229665,10.10354194,169.0,168.98,6.88218324]
[1754507230431,6.13792271,168.99,168.98,6.20218324]
[1754507231459,52.05354194,168.99,168.98,0.28432314]
[1754507231751,52.05354194,168.99,168.98,0.14216157]
[1754507232053,52.05354194,168.99,168.98,0.28432314]
[1754507232634,52.05354194,168.99,168.97,0.20216157]
[1754507232965,52.05354194,168.99,168.97,0.06]
[1754507232966,10.79354194,168.98,168.97,0.06]
[1754507236954,10.80127591,168.98,168.97,0.06]
[1754507238869,10.80127591,168.98,168.96,0.06]
[1754507238870,187.00621557,168.97,168.96,0.06]
[1754507239050,21.24413828,168.96,168.95,0.06]
[1754507239251,30.84418298,168.96,168.95,0.06]
[1754507241151,15.73796741,168.96,168.95,0.06]
[1754507243367,10.77127591,168.96,168.95,0.06]
[1754507245482,10.11127591,168.96,168.95,0.75]
[1754507246751,15.73796741,168.96,168.95,0.06]
[1754507246988,30.84418298,168.96,168.95,0.06]
[1754507247177,36.76274358,168.96,168.95,0.06]
[1754507247366,30.84418298,168.96,168.95,0.06]
[1754507247558,25.87749148,168.96,168.95,0.06]
[1754507247872,30.84418298,168.96,168.95,0.06]
[1754507248882,25.87749148,168.96,168.95,0.06]
[1754507250087,30.84418298,168.96,168.95,0.06]
[1754507250303,24.70626027,168.96,168.95,0.06]
[1754507250465,25.87749148,168.96,168.95,0.06]
[1754507250669,30.84418298,168.96,168.95,0.06]
[1754507251381,25.87749148,168.96,168.95,0.06]
[1754507251597,30.84418298,168.96,168.95,0.06]
[1754507251764,36.76274358,168.96,168.95,0.06]
[1754507253203,15.10621557,168.95,168.94,0.06]
[1754507253493,26.0,168.92,168.89,5.92099136]
[1754507253673,6.13792271,168.9,168.89,6.61099136]
[1754507253854,6.13792271,168.9,168.89,6.75315293]
[1754507254055,6.13792271,168.9,168.89,6.8953145]
[1754507254259,6.13792271,168.9,168.89,0.97432314]
[1754507254802,6.13792271,168.9,168.89,6.89533681]
[1754507255192,41.26,168.92,168.9,0.28432314]
[1754507255563,6.13792271,168.93,168.91,0.69]
[1754507255780,47.39792271,168.93,168.91,0.69]
[1754507255986,3.97525809,168.92,168.91,0.69]
[1754507256266,41.26,168.94,168.93,0.28432314]
[1754507256598,3.97525809,168.94,168.93,0.97432314]
[1754507258186,3.97525809,168.94,168.93,6.89393481]
[1754507260168,10.1131808,168.94,168.93,6.20393481]
[1754507263182,3.97525809,168.94,168.93,6.89393481]
[1754507263591,10.1131808,168.94,168.93,6.89393481]
[1754507263788,10.1131808,168.94,168.93,6.20393481]
[1754507264689,3.97525809,168.94,168.93,6.20393481]
[1754507264873,10.1131808,168.94,168.93,6.20393481]
[1754507266476,3.97525809,168.94,168.93,6.20393481]
[1754507266693,3.97525809,168.94,168.93,6.89393481]
[1754507267299,145.9,168.95,168.93,6.89393481]
[1754507267300,145.9,168.95,168.93,13.03185752]
[1754507267490,145.9,168.95,168.94,6.82792271]
[1754507268501,145.9,168.95,168.94,6.60926127]
[1754507268886,145.9,168.95,168.94,5.91926127]
[1754507269202,152.70792271,168.95,168.94,0.28432314]
[1754507269390,156.68872853,168.95,168.94,0.28432314]
[1754507270382,156.68872853,168.95,168.94,6.20358441]
[1754507271385,156.68872853,168.95,168.94,0.28432314]
[1754507271799,156.68963582,168.95,168.94,0.28432314]
[1754507274115,156.68963582,168.95,168.93,5.91946752]
[1754507274116,156.68963582,168.95,168.93,0.28432314]
[1754507274296,45.91171311,168.94,168.93,0.28432314]
[1754507275199,52.04963582,168.94,168.93,0.28432314]
[1754507275393,51.37963582,168.94,168.93,6.20393481]
[1754507279815,45.24171311,168.94,168.93,6.20393481]
[1754507280024,51.37963582,168.94,168.93,6.20393481]
[1754507280523,51.37963582,168.94,168.93,6.26393481]
[1754507281327,45.24171311,168.94,168.93,6.26393481]
[1754507282719,45.24171311,168.94,168.93,6.92393481]
[1754507284223,45.24171311,168.94,168.93,6.26393481]
[1754507285223,52.04963582,168.94,168.93,6.26393481]
[1754507285622,45.91171311,168.94,168.93,6.26393481]
[1754507286122,52.04963582,168.94,168.93,0.06]
[1754507286917,52.04963582,168.94,168.93,0.34432314]
[1754507287513,45.24171311,168.94,168.93,6.92393481]
[1754507287716,3.98171311,168.94,168.93,6.92393481]
[1754507287914,3.98171311,168.94,168.93,13.06185752]
[1754507289743,0.03,168.96,168.94,6.42224585]
[1754507289898,0.03,168.96,168.95,6.42224585]
[1754507290218,0.03,168.96,168.95,13.00115677]
[1754507292120,0.03,168.96,168.95,54.24115677]
[1754507294331,0.03,168.98,168.95,69.03843407]
[1754507294509,0.03,168.98,168.95,68.37843407]
[1754507294711,0.03,168.98,168.96,0.66]
[1754507295236,0.03,168.98,168.97,6.42224585]
[1754507295615,0.03,168.98,168.97,7.08224585]
[1754507296226,0.03,168.98,168.97,13.00045618]
[1754507299345,1e-08,168.98,168.97,13.00045618]
[1754507302734,1e-08,168.98,168.97,6.20253347]
[1754507302930,0.70000001,168.98,168.97,12.34045618]
[1754507303325,1e-08,168.98,168.97,6.20253347]
[1754507303515,1e-08,168.98,168.97,12.34045618]
[1754507306118,1e-08,168.98,168.97,13.01045618]
[1754507310660,1e-08,168.98,168.97,6.20253347]
[1754507310857,1e-08,168.98,168.97,12.34045618]
[1754507314057,1e-08,168.98,168.97,13.01045618]
[1754507314832,1e-08,168.98,168.97,69.33667175]
[1754507315758,1e-08,168.98,168.97,54.23045618]
[1754507316164,1e-08,168.98,168.97,53.56045618]
[1754507316873,1e-08,168.98,168.97,54.23045618]
[1754507317576,1e-08,168.98,168.97,12.34045618]
[1754507317782,1e-08,168.98,168.97,53.56045618]
[1754507322578,0.70000001,168.98,168.97,12.34045618]
[1754507323160,0.70000001,168.98,168.97,6.20253347]
[1754507323360,0.70000001,168.98,168.97,12.34045618]
[1754507323759,0.70000001,168.98,168.97,12.40045618]
[1754507324186,1e-08,168.98,168.97,12.40045618]
[1754507325793,0.70000001,168.98,168.97,12.40045618]
[1754507325963,0.70000001,168.98,168.97,6.26253347]
[1754507326169,6.83792272,168.98,168.97,0.06]
[1754507326370,10.81533551,168.98,168.97,0.06]
[1754507326699,6.83792272,168.98,168.97,0.06]
[1754507326876,10.81533551,168.98,168.97,0.06]
[1754507327188,0.70000001,168.98,168.97,0.06]
[1754507327392,4.6774128,168.98,168.97,0.06]
[1754507327770,10.81533551,168.98,168.97,0.06]
[1754507328086,6.83792272,168.98,168.97,0.06]
[1754507328293,4.6774128,168.98,168.97,0.06]
[1754507331395,10.81533551,168.98,168.97,0.06]
[1754507332290,10.81992957,168.98,168.97,0.06]
[1754507338396,36.59986696,168.98,168.97,0.06]
[1754507338607,57.84400524,168.98,168.97,0.06]
[1754507338786,15.10621557,168.97,168.95,0.06]
[1754507338983,77.33992956,168.96,168.95,0.06]
[1754507339307,78.04992956,168.96,168.95,0.06]
[1754507339798,83.96849016,168.96,168.95,0.06]
[1754507340582,99.07470573,168.96,168.95,0.06]
[1754507340796,41.10621557,168.94,168.93,0.06]
[1754507340980,51.22614513,168.94,168.93,0.06]
[1754507341186,51.93614513,168.94,168.93,0.06]
[1754507342013,15.10621557,168.93,168.91,0.06]
[1754507342198,66.44614513,168.92,168.91,0.06]
[1754507342578,67.15614513,168.92,168.91,0.06]
[1754507344118,73.07610724,168.92,168.91,0.06]
[1754507346283,79.21402995,168.92,168.91,0.06]
[1754507346708,81.58728395,168.92,168.91,0.06]
[1754507348520,75.44936124,168.92,168.91,0.06]
[1754507352619,47.02687868,168.9,168.89,0.06]
[1754507352798,100.5427241,168.9,168.89,0.06]
[1754507353112,101.2527241,168.9,168.89,0.06]
[1754507353699,95.11480139,168.9,168.89,0.06]
[1754507356208,79.20460305,168.9,168.89,0.06]
[1754507356807,41.10621557,168.88,168.87,0.1]
[1754507357015,94.40550256,168.88,168.87,0.1]
[1754507357412,95.11550256,168.88,168.87,0.1]
[1754507359437,88.48413828,168.88,168.87,0.1]
[1754507359608,82.34621557,168.88,168.87,0.78]
[1754507360117,88.48413828,168.88,168.87,0.78]
[1754507360426,82.34621557,168.88,168.87,0.78]
[1754507361230,82.34621557,168.88,168.87,0.1]
[1754507361420,82.34621557,168.88,168.87,0.78]
[1754507362639,82.34621557,168.88,168.87,0.1]
[1754507363206,88.48413828,168.88,168.87,0.1]
[1754507366224,88.48413828,168.88,168.87,0.78]
[1754507366542,99.04063522,168.88,168.87,0.1]
[1754507369230,92.43927094,168.88,168.87,0.1]
[1754507369423,93.11927094,168.88,168.87,0.1]
[1754507369955,99.04063522,168.88,168.87,0.1]
[1754507373161,98.36063522,168.88,168.87,0.1]
[1754507373452,99.04063522,168.88,168.87,0.1]
[1754507375536,104.01320896,168.88,168.87,0.1]
[1754507376041,99.04063522,168.88,168.87,0.1]
[1754507376251,104.01320896,168.88,168.87,0.1]
[1754507377050,106.38716596,168.88,168.87,0.1]
[1754507379454,101.41459222,168.88,168.87,0.1]
[1754507379834,101.41459222,168.88,168.85,0.06]
[1754507380040,47.24413828,168.86,168.85,0.74]
[1754507380251,92.45927094,168.86,168.85,0.74]
[1754507382256,97.42410916,168.86,168.85,0.06]
[1754507382837,103.34617477,168.86,168.85,0.06]
[1754507383038,104.02617477,168.86,168.85,0.06]
[1754507385337,91.28618645,168.86,168.85,0.06]
[1754507385543,91.28618645,168.86,168.85,0.74]
[1754507385544,41.05789359,168.86,168.85,0.74]
[1754507385864,45.21513266,168.86,168.85,0.74]
[1754507386037,51.35305537,168.86,168.85,0.74]
[1754507388959,51.35305537,168.86,168.85,0.06]
[1754507389166,51.35305537,168.86,168.85,0.76]
[1754507389838,45.21513266,168.86,168.85,6.68241634]
[1754507390240,45.21513266,168.86,168.85,6.96673948]
[1754507390449,3.95513266,168.86,168.85,6.96673948]
[1754507390650,3.95513266,168.86,168.85,13.10466219]
[1754507392647,3.95513266,168.86,168.85,6.96673948]
[1754507392849,3.95513266,168.86,168.85,13.10466219]
[1754507394367,3.95513266,168.86,168.85,6.96673948]
[1754507395377,3.95513266,168.86,168.85,6.26673948]
[1754507395541,45.19513266,168.86,168.85,6.26673948]
[1754507396668,45.19513266,168.86,168.85,0.06]
[1754507396669,51.33305537,168.86,168.85,0.06]
[1754507397483,51.33305537,168.86,168.85,0.34432314]
[1754507398037,51.33305537,168.86,168.85,0.06]
[1754507398244,52.01305537,168.86,168.85,0.06]
[1754507400459,57.93512098,168.86,168.85,0.06]
[1754507400659,104.00617477,168.86,168.85,0.06]
[1754507400956,15.10621557,168.85,168.84,0.06]
[1754507401165,30.86549986,168.85,168.84,0.06]
[1754507402877,36.7879162,168.85,168.84,0.06]
[1754507403471,36.82336336,168.85,168.84,0.06]
[1754507404351,30.90094702,168.85,168.84,0.06]
[1754507404771,25.91383105,168.85,168.84,0.06]
[1754507405877,31.83624739,168.85,168.84,0.06]
[1754507406178,36.82336336,168.85,168.84,0.06]
[1754507406758,31.83624739,168.85,168.84,0.06]
[1754507408657,34.21048639,168.85,168.84,0.06]
[1754507409392,34.24048639,168.85,168.84,0.06]
[1754507412082,34.24048639,168.85,168.83,0.06]
[1754507412279,15.10621557,168.83,168.82,0.06]
[1754507412482,21.24413828,168.82,168.81,0.06]
[1754507412665,15.10621557,168.81,168.8,0.1]
[1754507412871,38.60405842,168.81,168.8,0.1]
[1754507413264,32.05175376,168.81,168.8,0.1]
[1754507414282,37.97557343,168.81,168.8,0.1]
[1754507415562,31.83765072,168.81,168.8,0.1]
[1754507415763,31.83765072,168.81,168.77,0.06]
[1754507415975,57.04234958,168.8,168.77,0.06]
[1754507416288,57.99178609,168.8,168.77,0.06]
[1754507416856,19.09590834,168.8,168.79,0.76]
[1754507417087,51.38761548,168.8,168.79,0.76]
[1754507417264,45.24969277,168.8,168.79,0.76]
[1754507418074,51.38761548,168.8,168.79,0.76]
[1754507420158,51.38761548,168.8,168.79,0.77]
[1754507421389,45.24969277,168.8,168.79,0.77]
[1754507422465,51.38761548,168.8,168.79,0.77]
[1754507422683,51.38761548,168.8,168.79,0.06]
[1754507423187,51.38761548,168.8,168.79,0.77]
[1754507425287,45.24969277,168.8,168.79,0.77]
[1754507425471,52.10761548,168.8,168.79,0.06]
[1754507426685,67.21383105,168.8,168.79,0.06]
[1754507426886,73.13800166,168.8,168.79,0.06]
[1754507431209,79.30592437,168.8,168.79,0.06]
[1754507432206,73.16800166,168.8,168.79,0.06]
[1754507433302,75.54294666,168.8,168.79,0.06]
[1754507435022,81.68086937,168.8,168.79,0.06]
[1754507436228,21.24413828,168.79,168.78,0.06]
[1754507436425,25.95383105,168.79,168.78,0.06]
[1754507437010,34.25343764,168.79,168.78,0.06]
[1754507438510,34.25343764,168.79,168.77,0.06]
[1754507438820,34.25343764,168.79,168.76,0.06]
[1754507438821,15.10621557,168.77,168.76,0.06]
[1754507439130,15.10621557,168.77,168.75,0.1]
[1754507439131,41.15905472,168.77,168.75,0.1]
[1754507439335,41.10621557,168.71,168.7,0.1]
[1754507439630,92.49383105,168.71,168.7,0.1]
[1754507440012,97.26296967,168.71,168.7,0.1]
[1754507440727,104.12089238,168.71,168.7,0.1]
[1754507440928,110.0482233,168.71,168.7,0.1]
[1754507441129,103.91030059,168.71,168.7,0.1]
[1754507446137,103.89245063,168.71,168.7,0.1]
[1754507447209,91.127197,168.71,168.7,0.81]
[1754507447456,97.26511971,168.71,168.7,0.81]
[1754507447634,97.26511971,168.71,168.7,0.1]
[1754507448826,103.19245063,168.71,168.7,0.1]
[1754507449837,97.26511971,168.71,168.7,0.1]
[1754507450846,103.19245063,168.71,168.7,0.1]
[1754507451335,92.49598109,168.71,168.7,0.77]
[1754507451841,97.27013444,168.71,168.7,0.77]
[1754507452743,97.27013444,168.71,168.7,0.1]
[1754507455643,92.49598109,168.71,168.7,0.1]
[1754507455946,92.49598109,168.71,168.7,0.77]
[1754507456646,23.14160048,168.77,168.7,27.93913381]
[1754507456647,4.96480351,168.77,168.7,27.93913381]
[1754507456846,41.28,168.76,168.73,0.28432314]
[1754507457047,41.28,168.76,168.74,0.67]
[1754507457727,47.41792271,168.76,168.73,6.21062145]
[1754507457923,47.41792271,168.76,168.75,0.67]
[1754507461430,0.03,168.8,168.75,13.01817177]
[1754507461621,41.28,168.79,168.78,0.28432314]
[1754507462018,41.28,168.79,168.78,7.09224585]
[1754507462830,41.28,168.79,168.78,0.95432314]
[1754507463044,41.33,168.8,168.78,0.95432314]
[1754507463226,41.33,168.8,168.79,0.67]
[1754507464727,41.33,168.8,168.78,6.20894274]
[1754507464929,41.33,168.8,168.78,6.87894274]
[1754507465547,41.33,168.8,168.79,0.67]
[1754507466132,41.33,168.8,168.78,6.20894274]
[1754507466537,47.46792271,168.8,168.77,6.20945014]
[1754507466733,47.46792271,168.8,168.77,6.87945014]
[1754507467353,41.33,168.8,168.78,0.67]
[1754507467727,145.9,168.79,168.78,0.67]
[1754507471139,145.9,168.79,168.77,6.20945014]
[1754507471456,41.28,168.78,168.77,6.20945014]
[1754507471644,41.28,168.78,168.77,6.87945014]
[1754507473532,41.28,168.78,168.77,0.28432314]